bitfinex/quotes_ETHUSD_20241119
["timestamp","ask_amount","ask_price","bid_price","bid_amount"]
[1731978952927,6.17249,3152.1,3151.8,0.3175]
[1731978954186,6.17249,3152.1,3151.9,0.3175]
[1731978954890,3.0,3152.1,3151.9,0.3175]
[1731978955092,3.0,3152.1,3151.7,0.3175]
[1731978955428,6.17249,3152.1,3151.7,0.3175]
[1731978955738,3.0,3152.1,3151.7,3.4903]
[1731978956094,3.0,3152.1,3151.9,0.3175]
[1731978956818,3.0,3152.4,3151.9,0.3175]
[1731978957024,3.0,3152.4,3151.9,3.49015]
[1731978957530,3.0,3152.4,3152.1,0.3175]
[1731978958089,6.17221,3152.4,3152.1,0.3175]
[1731978958291,3.0,3152.4,3152.2,0.3175]
[1731978958762,6.17219,3152.4,3152.2,0.3175]
[1731978958901,3.0,3152.4,3152.2,0.3175]
[1731978959093,6.17221,3152.4,3152.2,0.3175]
[1731978959291,3.0,3152.2,3151.9,0.3175]
[1731978959495,3.0,3152.0,3151.9,0.3175]
[1731978960243,6.17258,3152.0,3151.9,0.3175]
[1731978960423,3.0,3152.0,3151.9,0.3175]
[1731978960753,6.17258,3152.0,3151.9,0.3175]
[1731978960930,3.0,3152.0,3151.9,0.3175]
[1731978962139,3.0,3152.4,3151.9,0.3175]
[1731978962440,3.0,3152.6,3152.3,0.3175]
[1731978962844,3.06849196,3152.9,3152.5,3.17208]
[1731978963093,3.43491649,3153.8,3152.6,0.634708]
[1731978963094,6.23994196,3153.2,3152.6,0.634708]
[1731978963273,3.17148,3153.1,3152.6,0.3175]
[1731978963595,3.17169,3152.9,3152.6,0.3175]
[1731978963757,3.06849196,3153.2,3152.6,3.48947]
[1731978964176,6.23991196,3153.2,3152.6,3.48947]
[1731978964353,6.23991196,3153.2,3152.6,3.97766378]
[1731978964851,6.23991196,3153.2,3152.6,3.914237]
[1731978965693,3.0,3153.1,3152.6,3.914237]
[1731978967107,3.0,3153.1,3152.7,0.7688]
[1731978967308,3.0,3153.1,3152.8,0.3175]
[1731978968032,3.17135,3153.3,3152.8,0.7858037]
[1731978968303,3.06849196,3153.4,3152.8,3.9575637]
[1731978968504,6.23970196,3153.4,3153.0,0.3175]
[1731978968690,3.17129,3153.3,3153.0,0.3175]
[1731978968875,3.06849196,3153.4,3153.0,0.3175]
[1731978969086,3.17128,3153.3,3153.2,0.3175]
[1731978969282,6.17128,3153.3,3153.2,0.3175]
[1731978970106,3.0,3153.2,3152.9,0.3175]
[1731978972306,3.17155,3153.1,3152.9,0.3175]
[1731978972475,6.17158,3153.0,3152.9,0.3175]
[1731978973484,0.7543,3152.8,3152.4,0.3175]
[1731978973811,6.17208,3152.5,3152.4,0.3175]
[1731978974816,6.95768,3152.5,3152.4,0.3175]
[1731978975107,7.50768,3152.5,3152.4,0.3175]
[1731978976495,7.50768,3152.5,3151.8,0.3175]
[1731978976715,7.50768,3152.5,3151.7,0.7721]
[1731978976716,7.50768,3152.5,3152.4,0.3175]
[1731978977214,9.24057196,3152.5,3152.4,0.3175]
[1731978977684,9.24057196,3152.5,3151.8,0.3175]
[1731978977685,3.0,3152.2,3151.8,0.3175]
[1731978977884,3.0,3152.2,3151.8,1.0356349]
[1731978978575,3.0,3152.4,3151.8,4.2084049]
[1731978978814,3.0,3152.4,3152.2,0.3175]
[1731978979016,6.17228,3152.3,3152.2,0.3175]
[1731978979389,3.0,3152.4,3152.2,0.3175]
[1731978979720,3.0,3152.7,3152.2,0.3175]
[1731978979925,6.17226,3152.4,3152.2,0.3175]
[1731978980376,6.17228,3152.3,3152.2,0.3175]
[1731978981502,3.0,3152.2,3151.8,0.3175]
[1731978981912,3.0,3152.4,3152.0,0.3175]
[1731978982132,3.0,3152.4,3152.2,0.3175]
[1731978982423,6.17226,3152.4,3152.2,0.3175]
[1731978982769,6.17228,3152.3,3152.2,0.3175]
[1731978982973,3.0,3152.3,3152.2,0.3175]
[1731978983174,3.0,3152.4,3152.2,0.3175]
[1731978983399,3.0,3152.5,3152.2,0.3175]
[1731978983804,3.0,3152.3,3152.2,0.3175]
[1731978984020,3.17253,3152.1,3151.8,1.1109]
[1731978984229,6.17259,3152.0,3151.8,1.1109]
[1731978984402,3.0,3152.0,3151.8,1.1109]
[1731978984904,6.17259,3152.0,3151.8,1.1109]
[1731978986333,3.0,3152.1,3151.8,1.1109]
[1731978986516,3.0,3152.3,3151.8,1.1109]
[1731978986704,3.0,3152.3,3151.8,1.92636103]
[1731978986900,6.1723,3152.3,3151.8,5.03569385]
[1731978987235,3.0,3152.3,3151.8,5.03569385]
[1731978987730,3.0,3152.3,3151.8,1.86291385]
[1731978987731,6.17233,3152.3,3151.8,1.86291385]
[1731978988318,3.1724,3152.2,3151.8,1.86291385]
[1731978988535,3.0,3152.1,3151.8,1.86291385]
[1731978988699,3.0,3152.1,3152.0,0.3175]
[1731978989551,5.85508,3152.1,3152.0,0.3175]
[1731978989703,2.6826,3152.1,3152.0,0.3175]
[1731978990145,5.85508,3152.1,3152.0,0.3175]
[1731978990700,3.17285,3151.8,3151.6,0.3175]
[1731978990927,3.17289,3151.7,3151.6,0.3175]
[1731978991748,6.17275,3151.9,3151.6,0.3175]
[1731978992098,3.17285,3151.8,3151.6,0.3175]
[1731978992298,3.17289,3151.7,3151.6,0.3175]
[1731978995525,6.17289,3151.7,3151.6,0.3175]
[1731978995937,6.94319,3151.7,3151.6,0.3175]
[1731978996138,7.49319,3151.7,3151.6,0.3175]
[1731978996308,3.17428,3150.4,3150.3,0.3175]
[1731978996727,6.17428,3150.4,3150.3,0.3175]
[1731978997437,6.97508,3150.4,3150.3,0.3175]
[1731978997738,6.97508,3150.4,3149.6,3.67973997]
[1731978997739,3.0,3149.8,3149.7,0.3175]
[1731978999591,3.0,3149.9,3149.6,3.67973997]
[1731978999731,3.0,3150.0,3149.6,3.67973997]
[1731979000486,6.17464,3150.0,3149.6,3.67973997]
[1731979001175,3.17477,3149.9,3149.6,3.67973997]
[1731979001465,3.0,3149.8,3149.6,3.67973997]
[1731979001641,6.17481,3149.8,3149.6,3.67973997]
[1731979001843,3.0,3149.8,3149.6,3.67973997]
[1731979002244,6.17483,3149.8,3149.6,3.67973997]
[1731979002458,3.17477,3149.9,3149.6,3.67973997]
[1731979002459,6.1749,3149.7,3149.6,3.67973997]
[1731979003061,7.0003,3149.7,3149.6,3.67973997]
[1731979003571,10.61879196,3149.7,3149.6,3.67973997]
[1731979007086,6.7249,3149.7,3149.6,3.67973997]
[1731979007730,3.0,3149.8,3149.6,3.67973997]
[1731979008743,3.17477,3149.9,3149.6,3.67973997]
[1731979008973,3.17482,3149.8,3149.6,3.67973997]
[1731979009178,3.1749,3149.7,3149.6,3.67973997]
[1731979009384,7.00149196,3149.7,3149.6,3.67973997]
[1731979009879,7.00149196,3149.7,3149.6,3.36243997]
[1731979010181,10.55149196,3149.7,3149.6,3.36243997]
[1731979014090,10.55149196,3149.7,3149.6,3.04511997]
[1731979014473,10.55149196,3149.7,3149.6,3.36261997]
[1731979021784,9.79339196,3149.7,3149.6,3.36261997]
[1731979021999,9.24339196,3149.7,3149.6,3.36261997]
[1731979023374,6.06849196,3149.7,3149.6,3.36261997]
[1731979023576,9.24339196,3149.7,3149.6,3.36261997]
[1731979023778,6.06849196,3149.7,3149.6,3.36261997]
[1731979024747,3.0,3149.9,3149.6,4.16491997]
[1731979024947,3.0,3149.9,3149.6,4.58141197]
[1731979025185,6.24283196,3150.3,3149.6,4.58141197]
[1731979025394,3.06849196,3150.3,3149.9,0.3175]
[1731979025577,3.17394,3150.7,3150.1,0.3175]
[1731979025578,3.1741,3150.5,3150.1,0.3175]
[1731979025747,3.17437,3150.3,3150.1,0.3175]
[1731979025951,3.1744,3150.2,3150.1,0.3175]
[1731979026597,3.17456,3150.1,3149.9,0.3175]
[1731979026807,3.06849196,3150.0,3149.9,0.3175]
[1731979027149,3.0,3150.2,3149.9,0.3175]
[1731979027354,3.0,3150.2,3149.9,1.061342]
[1731979027569,6.17448,3150.2,3149.9,1.061342]
[1731979028859,3.17331,3151.3,3150.8,0.743763]
[1731979029087,6.24129196,3151.8,3151.0,0.3175]
[1731979029421,6.24129196,3151.8,3151.4,0.7713]
[1731979029698,3.17293,3151.7,3151.4,0.7713]
[1731979030269,3.0,3151.7,3151.4,0.7713]
[1731979030527,3.44260104,3152.1,3151.4,0.7713]
[1731979030708,3.44260104,3152.1,3151.4,1.17209556]
[1731979030919,0.37410908,3152.1,3151.8,3.17278]
[1731979031061,0.37410908,3152.1,3151.9,0.782]
[1731979031260,0.37410908,3152.1,3152.0,3.17258]
[1731979031466,0.37410908,3152.1,3151.9,0.782]
[1731979032401,6.24067196,3152.4,3151.9,0.782]
[1731979032601,3.0,3152.3,3151.9,0.782]
[1731979032802,3.0,3152.5,3151.9,0.782]
[1731979032977,3.0,3152.6,3152.0,3.17258]
[1731979033373,3.0,3152.6,3152.1,3.17248]
[1731979033578,3.0,3152.6,3152.2,0.7954]
[1731979034106,6.172,3152.6,3152.2,0.7954]
[1731979034330,3.0,3152.6,3152.2,0.7954]
[1731979034617,3.0,3152.6,3152.2,3.96774]
[1731979034826,3.1717,3152.9,3152.3,3.17227]
[1731979035011,3.0,3152.8,3152.3,3.17227]
[1731979035176,3.0,3152.8,3152.2,0.85882743]
[1731979035382,6.06849196,3152.8,3152.2,0.85882743]
[1731979035582,6.06849196,3152.8,3152.2,4.03113743]
[1731979035779,6.06849196,3152.8,3152.2,4.75149917]
[1731979036624,9.24030196,3152.8,3152.2,1.57918917]
[1731979036921,9.24030196,3152.8,3152.2,4.75155917]
[1731979037515,9.24030196,3152.8,3152.2,1.57918917]
[1731979037877,3.17209,3152.5,3152.2,0.85882743]
[1731979038083,3.17209,3152.5,3151.8,3.93601]
[1731979038084,3.0,3152.4,3151.8,3.93601]
[1731979038525,3.0,3152.4,3151.8,0.7633]
[1731979038733,3.0,3152.7,3151.9,0.7633]
[1731979038903,3.0,3152.4,3151.9,0.7633]
[1731979039455,3.0,3152.1,3151.9,0.7633]
[1731979039591,3.0,3152.1,3151.3,0.7633]
[1731979039791,6.1725,3152.1,3151.3,1.18971]
[1731979040089,3.17268,3151.9,3151.4,0.0410222]
[1731979040327,6.17286,3151.8,3151.3,0.7633]
[1731979040490,3.0,3151.5,3151.3,0.7633]
[1731979041099,3.1732,3151.4,3150.9,0.7607]
[1731979041436,3.1732,3151.4,3150.9,1.154147]
[1731979041623,3.1732,3151.4,3150.9,0.7607]
[1731979042167,6.24184196,3151.3,3150.9,0.7607]
[1731979042667,3.17347,3151.2,3150.9,0.7607]
[1731979042965,6.24185196,3151.3,3150.9,0.7607]
[1731979043109,3.0,3151.2,3150.9,0.7607]
[1731979043314,3.0,3151.2,3150.9,3.93431]
[1731979043572,3.06849196,3151.9,3151.4,0.8137]
[1731979043712,3.06849196,3151.9,3151.4,0.87714636]
[1731979043913,3.1725,3152.1,3151.5,3.17308]
[1731979044151,3.1725,3152.1,3151.5,3.89542564]
[1731979044458,3.1725,3152.1,3151.5,0.72234564]
[1731979044763,3.06849196,3151.9,3151.6,0.3175]
[1731979045116,6.24118196,3151.9,3151.6,0.3175]
[1731979045316,3.06849196,3151.9,3151.6,0.3175]
[1731979045616,3.06849196,3151.9,3151.5,0.3175]
[1731979045818,3.0,3151.6,3151.5,0.3175]
[1731979046264,6.17299,3151.6,3151.5,0.3175]
[1731979046558,9.24148196,3151.6,3151.5,0.3175]
[1731979046768,3.17318,3151.5,3151.2,0.3175]
[1731979046975,9.24148196,3151.6,3151.2,0.3175]
[1731979047125,3.0,3151.3,3151.2,0.3175]
[1731979047926,3.0,3151.5,3151.2,0.3175]
[1731979048263,3.0,3151.7,3151.2,0.3175]
[1731979048464,3.0,3152.0,3151.5,0.3175]
[1731979048669,6.24089196,3152.2,3151.7,0.3175]
[1731979048880,3.17256,3152.1,3151.7,0.3175]
[1731979049851,3.0,3152.0,3151.7,0.3175]
[1731979050573,3.0,3152.1,3151.7,3.49037]
[1731979050874,3.0,3152.1,3151.9,0.3175]
[1731979051251,6.1725,3152.1,3151.9,0.3175]
[1731979051778,6.1725,3152.1,3151.7,0.3175]
[1731979052285,3.17279,3151.8,3151.7,0.3175]
[1731979052435,6.17279,3151.8,3151.7,0.3175]
[1731979052634,3.0,3151.7,3151.3,0.3175]
[1731979053065,6.17311,3151.5,3151.3,0.3175]
[1731979053275,3.0,3151.7,3151.3,0.3175]
[1731979053464,6.17295,3151.7,3151.3,0.3175]
[1731979053684,3.173,3151.6,3151.3,0.3175]
[1731979053849,6.17313,3151.5,3151.3,0.3175]
[1731979054047,3.0,3151.8,3151.3,0.3175]
[1731979054302,6.17287,3151.8,3151.5,0.3175]
[1731979054647,3.0,3152.1,3151.5,0.3175]
[1731979054890,3.17228,3152.3,3151.7,1.0823]
[1731979055102,3.06849196,3152.5,3152.1,0.3175]
[1731979055258,3.17218,3152.4,3152.3,0.3175]
[1731979056356,3.17229,3152.3,3152.1,0.3175]
[1731979056658,6.17211,3152.5,3152.1,0.3175]
[1731979057076,3.17219,3152.4,3152.1,0.3175]
[1731979057299,3.17219,3152.4,3152.1,0.746166]
[1731979058130,3.17219,3152.4,3152.1,0.3175]
[1731979059673,3.0,3152.5,3152.3,0.3175]
[1731979059868,3.0,3152.8,3152.3,0.3175]
[1731979060096,3.17171,3152.9,3152.3,3.90212591]
[1731979060097,3.0,3152.9,3152.3,3.90212591]
[1731979060379,3.0,3152.9,3152.5,0.3175]
[1731979060866,4.35754802,3153.0,3152.5,0.3175]
[1731979060867,3.0,3152.6,3152.5,0.3175]
[1731979061070,4.35754802,3153.0,3152.5,0.3175]
[1731979061071,3.17182,3152.8,3152.5,0.3175]
[1731979061271,3.0,3152.7,3152.5,0.3175]
[1731979061915,6.1719,3152.7,3152.5,0.31749958]
[1731979062435,3.0,3152.8,3152.5,0.31749958]
[1731979062619,3.0,3152.7,3152.5,0.31749958]
[1731979064087,3.17198,3152.6,3152.1,0.31749916]
[1731979064330,3.17203,3152.6,3152.1,0.31749916]
[1731979064704,6.88404002,3152.6,3152.1,0.31749916]
[1731979064915,3.1722,3152.4,3152.1,0.31749916]
[1731979065194,3.17234,3152.3,3152.2,0.31749916]
[1731979065417,3.1722,3152.4,3152.2,0.31749916]
[1731979066331,3.1722,3152.4,3152.0,0.31749916]
[1731979066638,3.0,3152.5,3152.0,0.31749916]
[1731979066812,3.17229,3152.3,3152.0,0.31749916]
[1731979067010,3.17227,3152.4,3152.0,0.31749916]
[1731979068032,6.1723,3152.3,3152.0,0.31749916]
[1731979068261,3.0,3152.1,3152.0,0.31749916]
[1731979068819,3.0,3152.3,3152.0,0.31749916]
[1731979069362,6.17232,3152.3,3152.0,0.31749916]
[1731979069847,3.17245,3152.2,3152.0,0.31749916]
[1731979070022,3.0,3152.1,3152.0,0.31749916]
[1731979070736,3.0,3152.1,3151.6,3.17292]
[1731979070737,3.0,3152.1,3151.7,1.14249916]
[1731979071257,3.17262,3152.0,3151.7,1.14249916]
[1731979071478,3.0,3152.1,3151.7,1.14249916]
[1731979071634,3.17277,3151.9,3151.8,0.31749916]
[1731979072028,6.17277,3151.9,3151.8,0.31749916]
[1731979072366,6.98537,3151.9,3151.8,0.31749916]
[1731979072521,3.0,3151.8,3151.3,0.31749916]
[1731979072967,3.0,3151.8,3151.3,3.49076916]
[1731979073165,6.17281,3151.8,3151.3,3.49076916]
[1731979073398,3.0,3151.8,3151.3,3.49076916]
[1731979073976,6.17279,3151.8,3151.3,3.49076916]
[1731979074177,3.0,3151.8,3151.3,3.49076916]
[1731979075241,3.0,3151.8,3151.5,0.31749916]
[1731979075439,6.17264,3152.0,3151.7,0.31749916]
[1731979075849,3.0,3151.8,3151.7,0.31749916]
[1731979076477,6.17279,3151.8,3151.7,0.31749916]
[1731979076661,3.0,3151.8,3151.7,0.31749916]
[1731979077496,3.0,3151.8,3151.5,0.31749916]
[1731979079593,3.0,3151.8,3151.6,0.31749916]
[1731979079594,4.00099,3151.7,3151.6,0.31749916]
[1731979079749,10.06500774,3151.7,3151.6,0.31749916]
[1731979080594,3.0,3151.6,3151.1,0.31749916]
[1731979080889,3.17197,3152.7,3152.1,0.31749916]
[1731979081101,3.17214,3152.5,3152.3,0.31749916]
[1731979081248,3.17207,3152.6,3152.3,0.31749916]
[1731979081446,3.17218,3152.4,3152.3,0.31749916]
[1731979081799,3.17209,3152.5,3152.3,0.31749916]
[1731979082011,3.17209,3152.5,3152.1,0.31749916]
[1731979082012,3.0,3152.5,3152.1,0.31749916]
[1731979082299,3.1722,3152.4,3152.1,0.31749916]
[1731979082654,3.0,3152.6,3152.1,0.31749916]
[1731979082857,3.0,3152.6,3152.1,3.48996916]
[1731979083063,6.17206,3152.6,3152.1,0.31749916]
[1731979083250,3.17208,3152.5,3152.1,0.31749916]
[1731979083602,3.0,3152.4,3152.1,0.31749916]
[1731979083899,3.0,3152.2,3151.4,0.763]
[1731979084202,3.0,3152.0,3151.5,3.49055]
[1731979084387,6.99103774,3152.3,3151.7,0.3175]
[1731979084558,3.0,3152.4,3151.9,0.3175]
[1731979084895,3.0,3152.4,3152.1,0.3175]
[1731979085297,6.17225,3152.4,3152.1,0.3175]
[1731979085705,3.0,3152.4,3152.1,0.3175]
[1731979085995,6.17236,3152.3,3152.2,0.3175]
[1731979086697,3.0,3152.6,3152.2,0.3175]
[1731979086867,6.17221,3152.4,3152.3,0.3175]
[1731979087191,10.57922774,3152.4,3152.3,0.3175]
[1731979087909,3.0,3152.1,3151.6,0.3175]
[1731979088061,3.0,3151.9,3151.6,0.3175]
[1731979088408,3.0,3152.1,3151.6,3.49042]
[1731979088606,3.0,3152.3,3151.9,0.3175]
[1731979088960,6.1723,3152.3,3151.9,0.3175]
[1731979089200,3.0,3152.3,3151.9,0.3175]
[1731979089554,3.0,3152.3,3152.1,0.3175]
[1731979089758,3.06401774,3152.4,3152.0,3.93178]
[1731979089759,3.17191,3152.7,3152.3,0.3175]
[1731979090055,6.23584774,3152.8,3152.3,0.3175]
[1731979090279,3.06401774,3152.8,3152.3,0.3175]
[1731979090504,3.06401774,3152.8,3152.5,0.3175]
[1731979090873,3.06401774,3152.8,3152.7,0.3175]
[1731979091187,3.18065552,3153.1,3152.7,0.3175]
[1731979092599,3.00917552,3153.1,3152.7,0.3175]
[1731979092957,6.18067552,3153.1,3152.7,0.3175]
[1731979094489,3.00917552,3153.1,3152.7,0.3175]
[1731979094801,6.18066552,3153.1,3152.7,0.3175]
[1731979096590,3.00917552,3153.1,3152.7,0.3175]
[1731979096804,6.18066552,3153.1,3152.7,0.3175]
[1731979103481,3.00917552,3153.1,3152.7,3.48937]
[1731979103798,6.18065552,3153.1,3152.7,0.3175]
[1731979103999,3.00917552,3153.1,3152.7,0.3175]
[1731979104594,3.17175,3152.9,3152.7,0.3175]
[1731979105218,6.18069552,3153.1,3152.7,0.3175]
[1731979105394,3.17161,3153.0,3152.7,0.3175]
[1731979105617,3.0,3152.9,3152.7,0.3175]
[1731979105991,3.00917552,3153.1,3152.7,0.3175]
[1731979106345,6.18065552,3153.1,3152.7,0.3175]
[1731979107393,6.18065552,3153.1,3152.7,0.74237]
[1731979107394,0.00917552,3153.1,3152.7,0.74237]
[1731979107597,0.00917552,3153.1,3153.0,0.3175]
[1731979108594,3.18065552,3153.1,3153.0,0.3175]
[1731979108928,6.18065552,3153.1,3153.0,0.3175]
[1731979109082,9.24467326,3153.1,3153.0,0.3175]
[1731979109284,3.00917552,3153.1,3153.0,0.3175]
[1731979109829,0.00917552,3153.1,3153.0,0.3175]
[1731979110634,6.18065552,3153.1,3152.9,0.3175]
[1731979111428,0.00917552,3153.1,3152.9,0.3175]
[1731979111633,0.00917552,3153.1,3152.9,0.746847]
[1731979111834,0.00917552,3153.1,3153.0,0.3175]
[1731979114292,0.00917552,3153.1,3152.9,0.3175]
[1731979114602,2.69177552,3153.3,3152.9,3.48917]
[1731979114818,6.34205,3153.6,3152.9,4.235677]
[1731979115134,3.1711,3153.5,3152.9,4.235677]
[1731979117116,3.0,3153.4,3152.9,4.235677]
[1731979117553,3.17118,3153.4,3152.9,4.235677]
[1731979117848,3.17118,3153.4,3153.1,0.3175]
[1731979118209,3.17134,3153.3,3153.1,0.3175]
[1731979118749,3.17134,3153.3,3152.8,0.8041]
[1731979118750,3.17134,3153.3,3152.9,0.3175]
[1731979119050,3.17139,3153.2,3152.9,0.3175]
[1731979119256,3.17134,3153.3,3152.9,0.3175]
[1731979119557,3.17148,3153.1,3152.9,0.3175]
[1731979120133,3.17158,3153.0,3152.9,0.3175]
[1731979120332,6.17158,3153.0,3152.9,0.3175]
[1731979121307,6.17158,3153.0,3152.6,0.3175]
[1731979121510,3.1717,3152.9,3152.6,0.3175]
[1731979121852,3.17188,3152.7,3152.6,0.3175]
[1731979122447,3.1717,3152.9,3152.3,0.3175]
[1731979122748,3.1717,3152.9,3152.3,3.9456158]
[1731979122951,3.17179,3152.8,3152.3,0.709948]
[1731979123254,3.1717,3152.9,3152.5,0.3175]
[1731979124149,6.17178,3152.8,3152.4,0.3175]
[1731979124370,3.17178,3152.8,3152.4,0.3175]
[1731979124510,2.85438,3152.8,3152.4,0.3175]
[1731979125120,2.85438,3152.8,3152.2,3.92447]
[1731979125121,6.17189,3152.7,3152.3,0.3175]
[1731979125424,3.0,3152.7,3152.3,0.3175]
[1731979125867,3.0,3152.7,3152.3,3.92029057]
[1731979128033,6.17189,3152.7,3152.3,0.74804057]
[1731979128326,6.17189,3152.7,3152.3,0.3175]
[1731979128532,3.0,3152.7,3152.3,0.3175]
[1731979128944,6.1719,3152.7,3152.3,0.3175]
[1731979129275,3.172,3152.6,3152.3,0.3175]
[1731979129493,3.0,3152.5,3152.3,0.3175]
[1731979129629,3.0,3152.7,3152.3,0.3175]
[1731979129977,6.17189,3152.7,3152.3,0.3175]
[1731979130567,3.0,3152.9,3152.3,0.74777255]
[1731979130769,0.8296,3153.1,3152.3,0.74777255]
[1731979130770,3.0,3152.7,3152.3,0.74777255]
[1731979131930,6.17189,3152.7,3152.3,0.74777255]
[1731979132143,3.0,3152.7,3152.3,0.3175]
[1731979132925,3.0,3152.7,3152.3,3.55321801]
[1731979133266,6.1719,3152.7,3152.3,0.38093801]
[1731979133475,6.1719,3152.7,3152.3,0.3175]
[1731979134665,3.0,3152.7,3152.3,0.3175]
[1731979135381,3.17189,3152.7,3152.3,0.3175]
[1731979135576,3.0,3152.9,3152.4,0.06343819]
[1731979135733,3.0,3153.1,3152.7,0.3175]
[1731979136078,3.17142,3153.2,3152.9,0.3175]
[1731979136243,3.96942,3153.4,3152.9,0.3175]
[1731979136455,3.17122,3153.4,3152.9,0.3175]
[1731979136983,3.17129,3153.3,3152.9,0.3175]
[1731979137135,0.8075,3153.9,3153.4,0.3175]
[1731979137334,3.06401774,3154.2,3153.7,0.3175]
[1731979137335,3.17048,3154.1,3153.7,0.3175]
[1731979138076,3.1706,3154.0,3153.7,0.3175]
[1731979138607,3.1706,3154.0,3153.5,3.48857]
[1731979138608,3.81774877,3154.0,3153.5,3.48857]
[1731979138749,3.0,3153.9,3153.7,0.3175]
[1731979139825,3.0,3153.9,3153.5,0.3175]
[1731979139960,3.17095,3153.7,3153.5,0.3175]
[1731979140699,3.17095,3153.7,3153.1,3.17146]
[1731979140700,3.17097,3153.6,3153.2,0.3175]
[1731979140994,3.17111,3153.5,3153.2,0.3175]
[1731979141191,3.17121,3153.4,3153.2,0.3175]
[1731979142158,3.95151,3153.7,3153.2,0.3175]
[1731979142159,6.17109,3153.5,3153.2,0.3175]
[1731979142902,3.0,3153.5,3153.2,0.3175]
[1731979143099,3.0,3153.6,3153.2,0.3175]
[1731979143597,6.17078,3153.8,3153.2,3.48883]
[1731979143756,3.0,3153.6,3153.2,0.3175]
[1731979144097,6.17099,3153.6,3153.2,0.3175]
[1731979144468,3.0,3153.8,3153.2,3.48886]
[1731979144792,0.63647722,3154.3,3153.7,0.3175]
[1731979144793,3.17049,3154.1,3153.7,0.3175]
[1731979145355,3.17029,3154.3,3153.7,3.48837]
[1731979145560,3.17039,3154.2,3153.7,3.48837]
[1731979145757,0.43395144,3154.4,3153.9,0.3175]
[1731979146172,3.17039,3154.2,3153.9,0.3175]
[1731979146501,3.17036,3154.3,3153.9,0.3175]
[1731979146669,3.17036,3154.3,3153.7,0.3175]
[1731979146670,3.17047,3154.1,3153.7,0.3175]
[1731979147078,3.0,3154.2,3153.9,0.3175]
[1731979147624,3.0,3154.2,3153.9,3.48816]
[1731979147916,0.43395144,3154.4,3154.1,0.3175]
[1731979148075,3.16944,3155.2,3154.3,0.3175]
[1731979148272,3.16901,3155.6,3154.8,4.23717]
[1731979148479,3.16919,3155.4,3154.8,4.23717]
[1731979148675,3.84711774,3155.7,3155.1,0.3175]
[1731979149001,3.16919,3155.4,3155.1,0.3175]
[1731979149404,3.16899,3155.6,3155.1,0.3175]
[1731979149740,3.16879,3155.8,3155.2,0.75]
[1731979149889,6.23260774,3156.0,3155.2,1.173698]
[1731979150226,3.70488152,3156.3,3155.5,3.16906]
[1731979150403,3.16846,3156.2,3155.6,3.16896]
[1731979150612,0.64086378,3156.3,3155.8,0.75]
[1731979150808,0.7831,3157.9,3156.2,0.75]
[1731979151013,3.16673,3157.9,3156.8,0.01]
[1731979151179,6.56132984,3158.3,3157.2,3.17736]
[1731979151378,0.63204572,3158.2,3157.5,3.48455]
[1731979151704,0.63204572,3158.2,3157.7,0.3175]
[1731979152077,3.17526,3159.3,3157.7,0.3175]
[1731979152078,0.10013948,3159.2,3157.8,0.75]
[1731979152282,0.64371518,3159.0,3157.9,0.06333024]
[1731979152514,3.16599,3158.6,3157.9,0.06333024]
[1731979152729,3.16599,3158.6,3157.8,1.13081864]
[1731979152904,3.16614,3158.5,3157.8,1.490934]
[1731979153232,3.16565,3158.9,3158.0,0.3175]
[1731979153518,3.0,3158.7,3158.0,0.3175]
[1731979156310,6.33412,3157.5,3156.8,0.8194]
[1731979156512,3.0,3157.6,3156.8,0.8194]
[1731979156686,3.16559,3159.0,3156.7,0.01]
[1731979156882,3.16624,3158.4,3157.5,3.16705]
[1731979157088,3.0,3158.3,3157.6,0.06331765]
[1731979157382,3.0,3158.4,3157.7,0.774]
[1731979157611,0.316559,3158.9,3157.8,0.06332078]
[1731979157612,3.0,3158.6,3157.8,0.06332078]
[1731979157826,0.32430478,3158.8,3158.0,3.16655]
[1731979158024,0.32430478,3158.8,3157.8,0.06332078]
[1731979158025,3.0,3158.7,3157.8,0.06332078]
[1731979158287,3.316559,3158.7,3157.9,3.16663]
[1731979158592,6.16586,3158.7,3158.0,0.06331676]
[1731979158912,3.16584,3158.8,3158.0,3.22986676]
[1731979159322,3.16589,3158.7,3158.0,0.06331676]
[1731979159501,3.16635,3158.3,3157.8,0.06331679]
[1731979160026,3.1661,3158.5,3157.8,0.06331679]
[1731979160253,6.16599,3158.6,3157.8,3.22999679]
[1731979160385,3.0,3159.2,3157.9,0.71708568]
[1731979160589,3.16602,3158.6,3158.0,0.06331756]
[1731979160998,3.0,3158.7,3158.0,0.06331756]
[1731979161393,3.0,3158.7,3158.0,3.22983756]
[1731979161633,3.16586,3158.7,3158.1,0.39469232]
[1731979161934,3.0,3159.1,3158.2,0.06331358]
[1731979162247,3.16517,3159.4,3158.6,3.16594]
[1731979162403,3.16517,3159.4,3158.7,0.37989593]
[1731979162611,3.16492,3159.7,3158.9,0.8216]
[1731979162914,3.16507,3159.5,3158.9,0.8216]
[1731979163130,3.16536,3159.2,3158.9,0.8216]
[1731979163433,3.16575,3158.9,3158.4,0.8216]
[1731979164006,3.0,3159.0,3158.4,0.8216]
[1731979164228,3.16546,3159.1,3158.4,0.8216]
[1731979164229,3.16577,3158.8,3158.4,0.8216]
[1731979164533,2.84837,3158.8,3158.5,0.3175]
[1731979164719,6.16595,3158.6,3158.5,0.3175]
[1731979166711,3.16631,3158.3,3158.1,0.3175]
[1731979167248,3.16616,3158.4,3158.1,0.3175]
[1731979167449,42.48895842,3192.2,3158.3,0.3175]